Cogmind - Beta 10.1 @@@ ROGUE MODE // 2020.10.22 @ 22:38:25 // Winter2019/RPGLIKE Player: Xeram Result: Destroyed by D-53 Grenadier with Mini Grenade Launcher Performance ------------- Evolutions (0) 0 Regions Visited (2) 400 Robots Destroyed (13) 65 Value Destroyed (274) 274 Prototype IDs (0) 0 Alien Tech Used (0) 0 Bonus (92) 92 TOTAL SCORE: 831 Bonus ------- Follower Combat Kills 92 Cogmind --------- Core Integrity 0/600 Matter 290/300 Energy 170/170 System Corruption 0% Temperature Cool (0) Movement Rolling (80) Location -10/Mines Parts ------- > --- POWER (1) -------- Makeshift Power Source > --- PROPULSION (2) --- Wheel Wheel > --- UTILITY (3) ------ (None) > --- WEAPON (2) ------- EM Pulse Gun Medium Laser > --- INVENTORY (1) ---- Light Assault Rifle Peak State ------------ > --- POWER ------------ Makeshift Power Source > --- PROPULSION ------- Wheel Wheel > --- UTILITY ---------- (None) > --- WEAPON ----------- EM Pulse Gun Medium Laser > --- INVENTORY -------- Light Assault Rifle [Rating: 8] Favorites ----------- Power Light Ion Engine Engine Light Ion Engine Propulsion Wheel Wheel Wheel Utility Signal Interpreter Processor Signal Interpreter Weapon Medium Laser Energy Gun Medium Laser Ballistic Gun Light Assault Rifle Build | -11 -10 -10 ------- Run | Scr Mat Min Slots Evolved 4 | 4 . . Power . | . . . Propulsion 1 | 1 . . Utility 2 | 2 . . Weapon 1 | 1 . . Parts Attached 9 | 6 1 2 Power 2 | 1 . 1 Engine 2 | 1 . 1 Core . | . . . Reactor . | . . . Propulsion 2 | 2 . . Treads . | . . . Leg . | . . . Wheel 2 | 2 . . Hover . | . . . Flight . | . . . Utility 2 | . 1 1 Device . | . . . Storage . | . . . Processor 2 | . 1 1 Hackware . | . . . Protection . | . . . Artifact . | . . . Weapon 3 | 3 . . Energy Gun 2 | 2 . . Energy Cannon . | . . . Ballistic Gun 1 | 1 . . Ballistic Cannon . | . . . Launcher . | . . . Special Weapon . | . . . Impact Weapon . | . . . Slashing Weapon . | . . . Piercing Weapon . | . . . Special Melee Weapon . | . . . Unidentified Prototypes . | . . . Parts Lost . | . . . Power . | . . . Propulsion . | . . . Utility . | . . . Weapon . | . . . Highest Loss Streak . | . . . Average Slot Usage (%) 63 | . 62 63 Engine 12 | . 12 12 Wheel 25 | . 25 25 Processor 1 | . . 1 Energy Gun 25 | . 25 25 Naked Turns . | . . . Heaviest Build 8 | 7 7 8 Greatest Support 20 | 20 20 20 Greatest Overweight (x) . | . . . Average Overweight (x) . | . . . Largest Inventory Capacity 1 | 1 1 1 Average Capacity 1 | 1 1 1 Most Carried 1 | 1 1 1 Average Carried . | . 1 1 Final Capacity 1 | 1 1 1 Final Carried 1 | 1 1 1 Class Distribution -------------------- 100% | Mutant Dominant Class ---------------- Mutant | -10/Materials Mutant | -10/Mines Resources | -11 -10 -10 ----------- Run | Scr Mat Min Matter Collected 278 | 104 156 18 Remotely . | . . . Salvage Created 421 | . 337 84 Parts 28 | . 16 12 Haulers Intercepted 1 | . 1 . Recyclers Shooed . | . . . Parts Field Recycled . | . . . Retrieved Matter . | . . . Parts Self-Destructed . | . . . Prevented . | . . . Kills | -11 -10 -10 ------- Run | Scr Mat Min Combat Hostiles Destroyed 8 | . 5 3 Guns 7 | . 5 2 AOE 1 | . . 1 Classes Destroyed 6 | . 4 2 Worker 2 | . 1 1 Tunneler 1 | . . 1 Hauler 1 | . 1 . Operator 1 | . 1 . Swarmer 2 | . . 2 Grunt 6 | . 5 1 Best Kill Streak 3 | . 3 2 Combat Bots Only 2 | . 2 2 Max Kills in Single Turn 1 | . 1 1 Gunslinging . | . . . Exploded 1 | . . 1 Melee . | . . . Uniques/NPCs Destroyed . | . . . Combat | -11 -10 -10 -------- Run | Scr Mat Min Damage Taken 925 | . 102 823 Core 762 | . 80 682 Absorbed by Shields . | . . . Redirected to Core 568 | . 68 500 Core Remaining (%) 100 | 100 . . Volleys Fired 44 | . 20 24 Largest 2 | . 2 2 Hottest 90 | . 90 90 Shots Fired 88 | . 40 48 Gun 88 | . 40 48 Cannon . | . . . Launcher . | . . . Special . | . . . Kinetic . | . . . Thermal 44 | . 20 24 Explosive . | . . . Electromagnetic 44 | . 20 24 Robot Hit Streak 18 | . 18 4 Robot Miss Streak 3 | . 2 3 Penetration Max . | . . . Secondary Targets 1 | . 1 . Max Gunslinging Chain 1 | . 1 . Shots Hit Robots 58 | . 31 27 Core Hits 22 | . 14 8 Critical Hits . | . . . Critical Kills . | . . . Critical Parts Destroyed . | . . . Melee Attacks . | . . . Impact . | . . . Slashing . | . . . Piercing . | . . . Sneak Attacks . | . . . Combat Hostiles . | . . . Follow-up Attacks . | . . . Damage Inflicted 841 | . 414 427 Guns 758 | . 414 344 Cannons . | . . . Explosions 69 | . . 69 Melee . | . . . Ramming 14 | . . 14 Kinetic . | . . . Thermal 391 | . 161 230 Explosive . | . . . Electromagnetic 436 | . 253 183 Impact . | . . . Slashing . | . . . Piercing . | . . . Highest Corruption . | . . . Average Corruption . | . . . Corruption Purged . | . . . Overload Shots . | . . . Overflow Damage . | . . . Projectiles . | . . . Explosions . | . . . Melee . | . . . Knockbacks . | . . . Impact . | . . . Kinetic . | . . . Secondary . | . . . Self-Inflicted Damage 45 | . . 45 Shots 1 | . . 1 Rammed 1 | . . 1 Targets Rammed 1 | . . 1 Kicked . | . . . Crushed . | . . . Highest Temperature 18 | . 16 18 Average Temperature 10 | . 9 12 Received Heat Transfer 81 | . 54 27 Siege Activations . | . . . Robots Corrupted . | . . . Combat Hostiles . | . . . Parts Fried . | . . . Impact Corruptions . | . . . Robots Melted . | . . . Combat Hostiles . | . . . Parts Melted 1 | . 1 . Heat Transferred 1012 | . 481 531 Parts Sabotaged . | . . . Parts Stolen . | . . . Parts Stripped . | . . . Power Chain Reactions 1 | . . 1 Missiles Intercepted . | . . . Alert | -11 -10 -10 ------- Run | Scr Mat Min Peak Influence 211 | . 182 211 Initial 70 | . . 70 Average 122 | . 96 139 Maximum Alert Level 1 | . . 1 Low Security (%) 66 | 100 100 54 Level 1 33 | . . 45 Level 2 . | . . . Level 3 . | . . . Level 4 . | . . . Level 5 . | . . . High Security . | . . . Max Security . | . . . Squads Dispatched 2 | . 2 . Investigation 2 | . 2 . Extermination . | . . . Reinforcement . | . . . Assault . | . . . Garrison . | . . . Intercept . | . . . Construction Impeded . | . . . Haulers Reinforced . | . . . Stealth | -11 -10 -10 --------- Run | Scr Mat Min Distress Signals . | . . . Communications Jammed . | . . . Distress Signals . | . . . Times Spotted 31 | . 7 24 Peak Tracking Total 12 | . 2 12 Tactical Retreats 1 | . . 1 Traps | -11 -10 -10 ------- Run | Scr Mat Min Traps Triggered . | . . . Indirectly . | . . . Trap Hack Attempts . | . . . Triggered . | . . . Disarmed . | . . . Reprogrammed . | . . . Reused . | . . . Traps Extracted . | . . . Installed . | . . . Triggered . | . . . Machines | -11 -10 -10 ---------- Run | Scr Mat Min Machines Disabled 1 | . 1 . Max in Single Turn 1 | . 1 . Machines Sabotaged . | . . . Garrisons Compromised . | . . . Overloaded Fab Kills . | . . . Fab Network Shutdowns . | . . . Hacking | -11 -10 -10 --------- Run | Scr Mat Min Machines Accessed 3 | . 3 . Terminals 3 | . 3 . Fabricators . | . . . Repair Stations . | . . . Recycling Units . | . . . Scanalyzers . | . . . Garrison Access . | . . . Total Hacks 9 | . 9 . Successful 1 | . 1 . Failed 8 | . 8 . Catastrophic 4 | . 4 . Database Lockouts . | . . . Manual 7 | . 7 . Terminals 9 | . 9 . Fabricators . | . . . Repair Stations . | . . . Recycling Units . | . . . Scanalyzers . | . . . Garrison Access . | . . . Terminal Hacks 1 | . 1 . Branch Access Points 1 | . 1 . Fabricator Hacks . | . . . Repair Station Hacks . | . . . Recycling Unit Hacks . | . . . Scanalyzer . | . . . Garrison Access Hacks . | . . . Unauthorized Hacks . | . . . Terminals . | . . . Fabricators . | . . . Repair Stations . | . . . Recycling Units . | . . . Scanalyzers . | . . . Garrison Access . | . . . Data Cores Recovered . | . . . Used . | . . . Hacking Detections 3 | . 3 . Full Trace Events 2 | . 2 . Feedback Events . | . . . Feedback Blocked . | . . . Robot Schematics Acquired . | . . . Robots Built . | . . . Matter . | . . . Time . | . . . Total Robot Build Rating . | . . . Part Schematics Acquired . | . . . Parts Built . | . . . Matter . | . . . Time . | . . . Total Part Build Rating . | . . . Parts Repaired . | . . . Time . | . . . Parts Recycled . | . . . Recycled Matter . | . . . Retrieved Matter . | . . . Retrieved Components . | . . . Parts Scanalyzed . | . . . Part Schematics Acquired . | . . . Parts Damaged . | . . . Bothacking | -11 -10 -10 ------------ Run | Scr Mat Min Used RIF Installer . | . . . Robots Hacked . | . . . Non-combat . | . . . Combat . | . . . Robot Hacks Applied . | . . . Relay Couplers Released . | . . . Robots Rewired . | . . . Allies Hacked . | . . . Hacks Repelled . | . . . Allies | -11 -10 -10 -------- Run | Scr Mat Min Total Allies 5 | . . 5 Largest Group 5 | . . 5 Highest-Rated Group 89 | . . 89 Highest-Rated Ally 31 | . . 31 Total Orders . | . . . Ally Attacks 26 | . . 26 Total Damage 332 | . . 332 Kills 5 | . . 5 Allies Corrupted . | . . . Allies Melted . | . . . Intel | -11 -10 -10 ------- Run | Scr Mat Min Robot Analysis Total . | . . . Derelict Logs Recovered 2 | . . 2 Drone Launches . | . . . Drone Recoveries . | . . . Exploration | -11 -10 -10 ------------- Run | Scr Mat Min Turns Passed 705 | 32 162 511 Spaces Moved 673 | 29 119 525 Core 1 | 1 . . Treads . | . . . Legs . | . . . Wheels 672 | 28 119 525 Hover . | . . . Flight . | . . . Fastest Speed 50 | 50 80 80 Average Speed 79 | 78 80 80 Slowest Speed 80 | 80 80 80 Overloaded Moves . | . . . Propulsion Burnouts . | . . . Robots Hopped . | . . . Cave-ins Triggered . | . . . Exploration Rate (%) 41 | 3 34 88 Regions Visited 2 Branch Regions 1 Pre-discovered Areas . | . . . Known Exits Taken 1 | . 1 . Unknown Exits Taken 1 | 1 . . Scrap Searched 2 | . . 2 Spaces Dug . | . . . Terrain Destroyed 5 | . . 5 Melee . | . . . Projectile . | . . . AOE 5 | . . 5 Terrain Rammed . | . . . Walls Destroyed . | . . . Machines Disabled . | . . . Actions | -11 -10 -10 --------- Run | Scr Mat Min Total 749 | 35 145 569 Wait 11 | . 3 8 Move 671 | 28 118 525 Hop . | . . . Pick Up . | . . . Fast Attach 8 | 6 1 1 Attach . | . . . Detach 3 | 1 . 2 Swap 1 | . . 1 Drop 1 | . . 1 Fire 44 | . 20 24 Melee . | . . . Ram 1 | . . 1 Kick . | . . . Crush . | . . . Escape Stasis . | . . . Rewire . | . . . Trap . | . . . Miscellaneous 9 | . 3 6 Route ------- -11/Scrapyard -10/Materials (discovered 3 exits: [*Mat] / *Min x2) -10/Mines (discovered 2 exits: [*Mat x2]) History --------- Turn | Location | Event 1 | -11/Scrapyard | Upgraded with Propulsion slot (x1) 1 | -11/Scrapyard | Upgraded with Utility slot (x2) 1 | -11/Scrapyard | Upgraded with Weapon slot (x1) 15 | -11/Scrapyard | Discovered new exit (range 16) 33 | -11/Scrapyard | Entered Materials 103 | -10/Materials | Discovered new exit (range 16) 186 | -10/Materials | Identified exit to Mines 195 | -10/Materials | Entered Mines 241 | -10/Mines | Discovered new exit (range 8) 250 | -10/Mines | Assisted by bots powering up and referring to "LRC-V3" 309 | -10/Mines | Build established: Mutant 326 | -10/Mines | Reached level 2 603 | -10/Mines | Discovered new exit (range 5) 634 | -10/Mines | Assembled infested the area 643 | -10/Mines | Learned Materials security intel 688 | -10/Mines | Core integrity fell below 50% 695 | -10/Mines | Core integrity fell below 20% 706 | -10/Mines | Destroyed by D-53 Grenadier with Mini Grenade Launcher Last Messages --------------- 00666_ LV-MEI(g) destroyed. 00668_ The unstable cave ceiling collapses. 00668_ as-59662 destroyed. 00668_ as-06192 destroyed. 00668_ as-41427 destroyed. 00670_ as-83520 destroyed. 00670_ as-37548 destroyed. 00670_ as-98421 destroyed. 00672_ The unstable cave ceiling collapses. 00672_ as-40356 destroyed. 00672_ as-87203 destroyed. 00679_ The unstable cave ceiling collapses. 00681_ as-88042 destroyed. 00681_ as-57632 destroyed. 00682_ as-93832 destroyed. 00682_ as-14159 destroyed. 00682_ as-23788 destroyed. 00683_ The unstable cave ceiling collapses. 00691_ D-53 Grenadier destroyed. 00692_ The unstable cave ceiling collapses. Map ----- +----------------------------------------------------+ | ##??? #?????????# ##??????????????? | | #### #?????????# "#???????????????? | | #?????????# %#???????????????? | | #?????????## "###?????????????? | | ## #####??????????# ######?????????? | | ?# #???????????#### ##????????? | | ?# #??????????## #????????? | | ?# ############ ## #????????? | | ?# ### ##????????? | | ?############### ##?# # #?????????? | | ???????????????####??# #?????????? | | ????????????????????## ## #?????????? | | #???????????????????# # # ##?????????? | | ##??????????????????## # = ####??????????? | | #??????????????????# #????????????? | | %#??????????????????# # ##????????????? | | ######?????????????#### # #????????????? | | ## ##?????????????# ####???????????? | | #?????????????# #???????????? | | #????????????## #???????????? | | ##????????????# # ##??????????? | | # ##?????????????# #??????????? | | ## ##?????????????# # ## # #??????????? | | ?## ##??####??????# # #??????????? | | ??## #### ##?????# # ##??????????? | | ???# #?????## @ # #???????????? | | ???# #??????# ##???????????? | | ???## ##?????# # #????????????? | | ????# ##### #?????# d # #????????????? | | ?#### #???## #?????# #???????????? | | ?# ####### #?????# ##???????????? | | ?# ##### ######?????## a ##????????????? | | ?# #??# ##?????????# ?????????????? | | ?# #?## ##???????? a ##????????????? | | ?# ### ##??????## #?????????????? | | ## ## #???????## ###?????????????? | | ## #????????## ???????????????? | | ##### ##?????????# ???????????????? | | ???## ####??????????## #???????????????? | | #### ##??????????????? ????????????????? | | ## ########?????????? ????????????????? | | #### ###???????? ????????????????? | | ###???????????????????????? | | # """ #???????????????????????? | | # """ #### #??????????????????????? | | # """ #### #??????????????????????? | | # #### ##??????????????????????? | | ## #?## ###???????????????????????? | | ?## #??# ##?????????????????????????? | | ??# #???###??????????????????????????? | +----------------------------------------------------+ Best States ------------- Heat Dissipation 49 Energy Generation 15 Energy Capacity 170 Matter Stores 300 Matter Capacity 300 Sight Range 16 Terrain Scan Density 60 Evasion (%) 44 Item Schematics ----------------- None Robot Schematics ------------------ None Fabricated ------------ Nothing Alien Tech Used ----------------- None Achievements -------------- None Challenges ------------ None RPGLIKE | -11 -10 -10 --------- Run | Scr Mat Min Levels Raised 1 | . . 1 XP Earned 5274 | 3000 710 1564 XP Spent 2870 | 2870 . . Upgrades 9 | 9 . . Propulsion Slot 1 | 1 . . Utility Slot 2 | 2 . . Weapon Slot 1 | 1 . . Heat Dissipation 4 | 4 . . Inventory Capacity 1 | 1 . . Protomatter Created 103 | . 40 63 Integrity Restored 153 | . 35 118 Core 124 | . 26 98 Parts 29 | . 9 20 Protomatter Decayed 130 | . 28 102 Game ------ Seed WardroneTargetingScanner Manual? 0 Play Time 00:05:55 Cumulative 83.7 hours Start 2020.10.22 @ 22:32:40 End 2020.10.22 @ 22:38:25 Sessions 1 Manual Loads 0 Difficulty Rogue Special Mode Winter2019/RPGLIKE Game No. 71 Rogue 70 Adventurer 1 Explorer 0 Win Type - Total 6 Types 3/1/0/1/0/1/0/0/0 Lore% 56 Gallery% 69 Achievement% 70 Wizard Run 0 Options --------- ASCII 0 Keyboard 1 Movement Numpad Keybinds 0 Fullscreen 1 Font 18/Terminus Map View 76x50 Tactical HUD 1 Map Filters NONE Filters NONE Steam 1 RUN: 1761ae84-91db-40a5-b533-9717cfdebe27